lending/lending_fUSD_20250131
["ID","MTS","AMOUNT","RATE_DAILY","PERIOD"]
[351041037,1738305069042,-1386.34,0.00019726,3]
[351041038,1738305069051,-3756.07,0.00019726,3]
[351041039,1738305069061,-1884.67,0.00019726,3]
[351041040,1738305069071,-500.0,0.00019726,3]
[351041041,1738305069081,-1555.45,0.00019726,3]
[351041042,1738305069091,-4405.08,0.00019726,3]
[351041043,1738305069100,-500.0,0.00019726,3]
[351041044,1738305069111,-1197.53,0.00019726,3]
[351041045,1738305069122,-1376.94,0.00019726,3]
[351041046,1738305069132,-1263.64,0.00019726,3]
[351041047,1738305069142,-500.0,0.00019726,3]
[351041048,1738305069152,-2409.26,0.00019726,3]
[351041049,1738305069162,-1099.02,0.00019726,3]
[351041050,1738305069171,-150.0,0.0001973,4]
[351041051,1738305069180,-224.84321,0.0001974,2]
[351041052,1738305069189,-158.400441,0.0001974,2]
[351041053,1738305069198,-212.0,0.0001974,2]
[351041054,1738305069208,-205.0,0.0001974,2]
[351041055,1738305069217,-208.0,0.0001974,2]
[351041056,1738305069226,-150.0,0.00019744,4]
[351041057,1738305069236,-500.0,0.00019753,3]
[351041058,1738305069245,-500.0,0.00019756,2]
[351041059,1738305069254,-500.0,0.00019759,2]
[351041060,1738305069263,-161.730746,0.0001976,2]
[351041061,1738305069273,-186.39179502,0.00019763,2]
[351041062,1738305069283,-20000.0,0.0001977,2]
[351041063,1738305069293,-3114.11,0.00019779,3]
[351041064,1738305069358,-25000.0,0.0001978,2]
[351041065,1738305069367,-4805.856632,0.0001978,2]
[351041066,1738305069377,-500.0,0.00019781,3]
[351041067,1738305069386,-150.0,0.000198,4]
[351041068,1738305069395,-7104.42449686,0.000198,2]
[351041069,1738305069404,-500.0,0.000198,7]
[351041070,1738305069414,-500.0,0.00019808,3]
[351041071,1738305069423,-500.0,0.00019836,3]
[351041072,1738305069432,-150.0,0.00019842,4]
[351041073,1738305069442,-150.0,0.00019842,4]
[351041074,1738305069451,-1872.54471817,0.00019845,2]
[351041075,1738305069460,-7266.06423844,0.00019845,2]
[351041076,1738305069469,-285.06887404,0.00019849,2]
[351041077,1738305069479,-304.94010569,0.00019849,2]
[351041078,1738305069487,-500.0,0.00019859,2]
[351041079,1738305069496,-208.0,0.0001986,2]
[351041080,1738305069505,-585.25,0.00019862,2]
[351041081,1738305069514,-3114.11,0.00019862,3]
[351041082,1738305069523,-3114.11,0.00019862,3]
[351041083,1738305069532,-500.0,0.00019863,3]
[351041084,1738305069541,-208.0,0.00019863,2]
[351041085,1738305069551,-208.0,0.00019863,2]
[351041086,1738305069560,-208.0,0.00019863,2]
[351041087,1738305069570,-208.0,0.00019863,2]
[351041088,1738305069579,-208.0,0.00019863,2]
[351041089,1738305069589,-604.89,0.00019863,14]
[351041090,1738305069598,-2561.412487,0.00019863,3]
[351041091,1738305069607,-153.54865,0.00019863,3]
[351041092,1738305069617,-1906.979987,0.00019863,3]
[351041093,1738305069629,-150.823465,0.00019863,3]
[351041094,1738305069639,-217.0,0.00019863,2]
[351041095,1738305069647,-500.0,0.00019863,3]
[351041096,1738305069658,-500.0,0.00019863,3]
[351041097,1738305069667,-500.0,0.00019863,3]
[351041098,1738305069676,-500.0,0.00019863,3]
[351041099,1738305069686,-592.6,0.00019863,3]
[351041100,1738305069696,-500.0,0.00019863,3]
[351041101,1738305069707,-500.0,0.00019863,3]
[351041102,1738305069717,-940.25,0.00019863,3]
[351041103,1738305069727,-548.89,0.00019863,3]
[351041104,1738305069737,-500.0,0.00019863,3]
[351041105,1738305069747,-611.59,0.00019863,3]
[351041106,1738305069757,-500.0,0.00019863,3]
[351041107,1738305069766,-500.0,0.00019863,3]
[351041108,1738305069776,-510.11,0.00019863,3]
[351041109,1738305069785,-500.0,0.00019863,3]
[351041110,1738305069796,-500.0,0.00019863,3]
[351041111,1738305069805,-500.0,0.00019863,3]
[351041112,1738305069815,-500.0,0.00019863,3]
[351041113,1738305069824,-500.0,0.00019863,3]
[351041114,1738305069833,-500.0,0.00019863,3]
[351041115,1738305069843,-500.0,0.00019863,3]
[351041116,1738305069852,-597.83,0.00019863,3]
[351041117,1738305069862,-500.0,0.00019863,3]
[351041118,1738305069871,-500.0,0.00019863,3]
[351041119,1738305069880,-500.0,0.00019863,3]
[351041120,1738305069890,-500.0,0.00019863,3]
[351041121,1738305069900,-500.0,0.00019863,3]
[351041122,1738305069909,-500.0,0.00019863,3]
[351041123,1738305069918,-500.0,0.00019863,3]
[351041124,1738305069928,-500.0,0.00019863,3]
[351041125,1738305069939,-500.0,0.00019863,3]
[351041126,1738305069949,-500.0,0.00019863,3]
[351041127,1738305069960,-390.81478216,0.00019863,3]
[351041128,1738305069969,-500.0,0.00019863,3]
[351041129,1738305069979,-150.823464,0.00019863,3]
[351041130,1738305069989,-892.45,0.00019863,3]
[351041131,1738305070000,-500.0,0.00019863,3]
[351041132,1738305070009,-500.0,0.00019863,3]
[351041133,1738305070019,-500.0,0.00019863,3]
[351041134,1738305070031,-500.0,0.00019863,3]
[351041135,1738305070040,-621.91,0.00019863,3]
[351041136,1738305070049,-500.0,0.00019863,3]
[351041137,1738305070058,-500.0,0.00019863,3]
[351041138,1738305070068,-945.02,0.00019863,3]
[351041139,1738305070078,-500.0,0.00019863,3]
[351041140,1738305070087,-644.88,0.00019863,3]
[351041141,1738305070097,-839.16,0.00019863,3]
[351041142,1738305070105,-643.82,0.00019863,3]
[351041143,1738305070114,-513.4650702,0.00019863,3]
[351041144,1738305070124,-500.0,0.00019863,3]
[351041145,1738305070134,-500.0,0.00019863,3]
[351041146,1738305070144,-534.48,0.00019863,3]
[351041147,1738305070155,-500.0,0.00019863,3]
[351041148,1738305070166,-500.0,0.00019863,3]
[351041149,1738305070176,-500.0,0.00019863,3]
[351041150,1738305070186,-624.54,0.00019863,3]
[351041151,1738305070195,-500.0,0.00019863,3]
[351041152,1738305070204,-500.0,0.00019863,3]
[351041153,1738305070213,-500.0,0.00019863,3]
[351041154,1738305070224,-748.93,0.00019863,3]
[351041155,1738305070233,-500.0,0.00019863,3]
[351041156,1738305070243,-629.81,0.00019863,3]
[351041157,1738305070255,-500.0,0.00019863,3]
[351041158,1738305070264,-500.0,0.00019863,3]
[351041159,1738305070275,-1029.5,0.00019863,3]
[351041160,1738305070286,-510.4,0.00019863,3]
[351041161,1738305070295,-1069.89,0.00019863,3]
[351041162,1738305070304,-500.0,0.00019863,3]
[351041163,1738305070314,-1261.9,0.00019863,3]
[351041164,1738305070323,-500.0,0.00019863,3]
[351041165,1738305070332,-500.0,0.00019863,3]
[351041166,1738305070342,-527.96,0.00019863,3]
[351041167,1738305070351,-509.27,0.00019863,3]
[351041168,1738305070360,-999.51,0.00019863,3]
[351041169,1738305070371,-1002.1,0.00019863,3]
[351041170,1738305070380,-787.81,0.00019863,3]
[351041171,1738305070390,-564.05,0.00019863,3]
[351041172,1738305070399,-657.22,0.00019863,3]
[351041173,1738305070409,-500.0,0.00019863,3]
[351041174,1738305070419,-1484.08,0.00019863,3]
[351041175,1738305070429,-657.63,0.00019863,3]
[351041176,1738305070438,-698.29,0.00019863,3]
[351041177,1738305070448,-637.86,0.00019863,3]
[351041178,1738305070459,-500.0,0.00019863,3]
[351041179,1738305070468,-500.0,0.00019863,3]
[351041180,1738305070477,-813.38,0.00019863,3]
[351041181,1738305070486,-500.0,0.00019863,3]
[351041182,1738305070497,-669.6,0.00019863,3]
[351041183,1738305070507,-500.0,0.00019863,3]
[351041184,1738305070518,-577.58,0.00019863,3]
[351041185,1738305070528,-636.74,0.00019863,3]
[351041186,1738305070537,-621.08,0.00019863,3]
[351041187,1738305070546,-619.94,0.00019863,3]
[351041188,1738305070555,-500.0,0.00019863,3]
[351041189,1738305070566,-1585.17,0.00019863,3]
[351041190,1738305070575,-500.0,0.00019863,3]
[351041191,1738305070584,-1674.68,0.00019863,3]
[351041192,1738305070594,-514.86,0.00019863,3]
[351041193,1738305070603,-592.24,0.00019863,3]
[351041194,1738305070613,-587.16,0.00019863,3]
[351041195,1738305070623,-589.61,0.00019863,3]
[351041196,1738305070634,-1014.15,0.00019863,3]
[351041197,1738305070643,-508.89,0.00019863,3]
[351041198,1738305070653,-594.29,0.00019863,3]
[351041199,1738305070663,-500.0,0.00019863,3]
[351041200,1738305070672,-596.58,0.00019863,3]
[351041201,1738305070681,-500.0,0.00019863,3]
[351041202,1738305070691,-571.22,0.00019863,3]
[351041203,1738305070703,-500.0,0.00019863,3]
[351041204,1738305070712,-579.26,0.00019863,3]
[351041205,1738305070721,-500.0,0.00019863,3]
[351041206,1738305070731,-885.01,0.00019863,3]
[351041207,1738305070741,-623.55,0.00019863,3]
[351041208,1738305070751,-1002.67,0.00019863,3]
[351041209,1738305070760,-500.0,0.00019863,3]
[351041210,1738305070770,-500.0,0.00019863,3]
[351041211,1738305070779,-1096.16,0.00019863,3]
[351041212,1738305070789,-741.76,0.00019863,3]
[351041213,1738305070799,-786.28,0.00019863,3]
[351041214,1738305070808,-500.0,0.00019863,3]
[351041215,1738305070819,-645.76,0.00019863,3]
[351041216,1738305070828,-500.0,0.00019863,3]
[351041217,1738305070838,-510.85,0.00019863,3]
[351041218,1738305070847,-500.0,0.00019863,3]
[351041219,1738305070857,-994.37,0.00019863,3]
[351041220,1738305070867,-500.0,0.00019863,3]
[351041221,1738305070877,-500.0,0.00019863,3]
[351041222,1738305070887,-706.6,0.00019863,3]
[351041223,1738305070896,-612.52,0.00019863,3]
[351041224,1738305070906,-1207.91,0.00019863,3]
[351041225,1738305070916,-791.36,0.00019863,3]
[351041226,1738305070926,-1013.39,0.00019863,3]
[351041227,1738305070936,-904.4,0.00019863,3]
[351041228,1738305070945,-500.0,0.00019863,3]
[351041229,1738305070954,-500.0,0.00019863,3]
[351041230,1738305070965,-500.0,0.00019863,3]
[351041231,1738305070974,-500.0,0.00019863,3]
[351041232,1738305070984,-517.64,0.00019863,3]
[351041233,1738305070993,-1289.82,0.00019863,3]
[351041234,1738305071002,-611.17,0.00019863,3]
[351041235,1738305071011,-948.72,0.00019863,3]
[351041236,1738305071021,-500.0,0.00019863,3]
[351041237,1738305071030,-493.50309054,0.00019863,3]
[351041238,1738305071040,-634.51,0.00019863,3]
[351041239,1738305071049,-1063.96,0.00019863,3]
[351041240,1738305071059,-565.48,0.00019863,3]
[351041241,1738305071069,-500.0,0.00019863,3]
[351041242,1738305071079,-731.2,0.00019863,3]
[351041243,1738305071088,-500.0,0.00019863,3]
[351041244,1738305071098,-625.92,0.00019863,3]
[351041245,1738305071108,-500.0,0.00019863,3]
[351041246,1738305071118,-888.22,0.00019863,3]
[351041247,1738305071127,-500.0,0.00019863,3]
[351041248,1738305071136,-747.79,0.00019863,3]
[351041249,1738305071146,-753.31,0.00019863,3]
[351041250,1738305071155,-500.0,0.00019863,3]
[351041251,1738305071164,-813.15,0.00019863,3]
[351041252,1738305071173,-500.0,0.00019863,3]
[351041253,1738305071184,-587.71,0.00019863,3]
[351041254,1738305071194,-526.0,0.00019863,3]
[351041255,1738305071204,-500.0,0.00019863,3]
[351041256,1738305071214,-500.0,0.00019863,3]
[351041257,1738305071225,-1170.95,0.00019863,3]
[351041258,1738305071234,-680.12,0.00019863,3]
[351041259,1738305071244,-713.89,0.00019863,3]
[351041260,1738305071255,-1073.91,0.00019863,3]
[351041261,1738305071264,-703.88,0.00019863,3]
[351041262,1738305071273,-676.92,0.00019863,3]
[351041263,1738305071283,-1486.98,0.00019863,3]
[351041264,1738305071294,-1628.4,0.00019863,3]
[351041265,1738305071304,-887.83,0.00019863,3]
[351041266,1738305071314,-605.81,0.00019863,3]
[351041267,1738305071324,-750.42,0.00019863,3]
[351041268,1738305071335,-500.0,0.00019863,3]
[351041269,1738305071346,-1440.62,0.00019863,3]
[351041270,1738305071356,-702.9,0.00019863,3]
[351041271,1738305071365,-500.0,0.00019863,3]
[351041272,1738305071376,-1568.12,0.00019863,3]
[351041273,1738305071386,-629.08,0.00019863,3]
[351041274,1738305071395,-614.57,0.00019863,3]
[351041275,1738305071406,-660.86,0.00019863,3]
[351041276,1738305071415,-814.9,0.00019863,3]
[351041277,1738305071425,-500.0,0.00019863,3]
[351041278,1738305071434,-1203.73,0.00019863,3]
[351041279,1738305071443,-500.0,0.00019863,3]
[351041280,1738305071453,-1186.22,0.00019863,3]
[351041281,1738305071463,-1147.47,0.00019863,3]
[351041282,1738305071472,-540.01,0.00019863,3]
[351041283,1738305071482,-500.0,0.00019863,3]
[351041284,1738305071492,-524.52,0.00019863,3]
[351041285,1738305071502,-500.0,0.00019863,3]
[351041286,1738305071512,-500.0,0.00019863,3]
[351041287,1738305071521,-881.63,0.00019863,3]
[351041288,1738305071531,-967.81,0.00019863,3]
[351041289,1738305071541,-534.57,0.00019863,3]
[351041290,1738305071551,-500.0,0.00019863,3]
[351041291,1738305071561,-500.0,0.00019863,3]
[351041292,1738305071572,-500.0,0.00019863,3]
[351041293,1738305071581,-1375.8,0.00019863,3]
[351041294,1738305071591,-2064.31,0.00019863,3]
[351041295,1738305071600,-1371.89,0.00019863,3]
[351041296,1738305071610,-693.79,0.00019863,3]
[351041297,1738305071621,-567.83,0.00019863,3]
[351041298,1738305071636,-1170.58,0.00019863,3]
[351041299,1738305071646,-500.0,0.00019863,3]
[351041300,1738305071657,-1657.08,0.00019863,3]
[351041301,1738305071666,-1028.74,0.00019863,3]
[351041302,1738305071677,-354.54,0.00019863,3]
[351041303,1738305071686,-997.27,0.00019863,3]
[351041304,1738305071696,-500.0,0.00019863,3]
[351041305,1738305071706,-150.823465,0.00019863,3]
[351041306,1738305071716,-709.71,0.00019863,3]
[351041307,1738305071726,-500.0,0.00019863,3]
[351041308,1738305071735,-622.48,0.00019863,3]
[351041309,1738305071746,-1222.79,0.00019863,3]
[351041310,1738305071755,-1025.99,0.00019863,3]
[351041311,1738305071766,-500.0,0.00019863,3]
[351041312,1738305071776,-500.0,0.00019863,3]
[351041313,1738305071787,-579.62,0.00019863,3]
[351041314,1738305071796,-1306.27,0.00019863,3]
[351041315,1738305071807,-1132.77,0.00019863,3]
[351041316,1738305071817,-515.15,0.00019863,3]
[351041317,1738305071828,-567.93,0.00019863,3]
[351041318,1738305071838,-1749.85,0.00019863,3]
[351041319,1738305071848,-733.92,0.00019863,3]
[351041320,1738305071858,-1277.79,0.00019863,3]
[351041321,1738305071869,-1044.01,0.00019863,2]
[351041322,1738305071879,-500.0,0.00019863,3]
[351041323,1738305071889,-500.0,0.00019863,3]
[351041324,1738305071899,-2092.2,0.00019863,3]
[351041325,1738305071909,-6599.4,0.00019863,3]
[351041326,1738305071919,-500.0,0.00019863,3]
[351041327,1738305071929,-1349.63,0.00019863,3]
[351041328,1738305071939,-500.0,0.00019863,3]
[351041329,1738305071949,-623.6,0.00019863,3]
[351041330,1738305071959,-500.0,0.00019863,3]
[351041331,1738305071968,-1162.34,0.00019863,3]
[351041332,1738305071978,-704.49,0.00019863,3]
[351041333,1738305071987,-500.0,0.00019863,3]
[351041334,1738305071997,-2843.11,0.00019863,3]
[351041335,1738305072006,-500.0,0.00019863,3]
[351041336,1738305072016,-500.0,0.00019863,3]
[351041337,1738305072026,-1467.74,0.00019863,3]
[351041338,1738305072036,-500.0,0.00019863,3]
[351041339,1738305072046,-500.0,0.00019863,3]
[351041340,1738305072056,-2381.94,0.00019863,3]
[351041341,1738305072066,-500.0,0.00019863,3]
[351041342,1738305072076,-1324.74,0.00019863,3]
[351041343,1738305072087,-1349.56,0.00019863,3]
[351041344,1738305072097,-500.0,0.00019863,3]
[351041345,1738305072107,-2091.67,0.00019863,3]
[351041346,1738305072117,-1017.43,0.00019863,3]
[351041347,1738305072127,-1259.58,0.00019863,3]
[351041348,1738305072137,-500.0,0.00019863,3]
[351041349,1738305072147,-3116.59,0.00019863,3]
[351041350,1738305072157,-1719.88,0.00019863,3]
[351041351,1738305072168,-2234.71,0.00019863,3]
[351041352,1738305072177,-666.18,0.00019863,3]
[351041353,1738305072187,-740.76,0.00019863,3]
[351041354,1738305072197,-906.12,0.00019863,3]
[351041355,1738305072207,-4876.27,0.00019863,3]
[351041356,1738305072217,-1298.89,0.00019863,3]
[351041357,1738305072227,-819.25,0.00019863,3]
[351041358,1738305072237,-500.0,0.00019863,3]
[351041359,1738305072247,-695.87,0.00019863,3]
[351041360,1738305072257,-500.0,0.00019863,3]
[351041361,1738305072268,-1699.86,0.00019863,3]
[351041362,1738305072278,-2758.75,0.00019863,3]
[351041363,1738305072288,-500.0,0.00019863,3]
[351041364,1738305072298,-3201.18,0.00019863,3]
[351041365,1738305072307,-500.0,0.00019863,3]
[351041366,1738305072317,-3315.06,0.00019863,3]
[351041367,1738305072327,-738.95,0.00019863,3]
[351041368,1738305072337,-842.74,0.00019863,3]
[351041369,1738305072347,-500.0,0.00019863,3]
[351041370,1738305072358,-2477.82,0.00019863,3]
[351041371,1738305072368,-1149.21,0.00019863,3]
[351041372,1738305072378,-6509.57,0.00019863,3]
[351041373,1738305072388,-771.98,0.00019863,3]
[351041374,1738305072398,-1331.02,0.00019863,3]
[351041375,1738305072408,-500.0,0.00019863,3]
[351041376,1738305072418,-1406.67,0.00019863,3]
[351041377,1738305072428,-16710.32,0.00019863,3]
[351041378,1738305072438,-1691.16,0.00019863,3]
[351041379,1738305072448,-500.0,0.00019863,3]
[351041380,1738305072458,-1770.42,0.00019863,3]
[351041381,1738305072479,-500.0,0.00019863,3]
[351041382,1738305072490,-1059.79,0.00019863,3]
[351041383,1738305072500,-1589.13,0.00019863,3]
[351041384,1738305072510,-684.17,0.00019863,3]
[351041385,1738305072520,-1904.76,0.00019863,3]
[351041386,1738305072530,-500.0,0.00019863,3]
[351041387,1738305072540,-2243.64,0.00019863,3]
[351041388,1738305072550,-1607.08,0.00019863,3]
[351041389,1738305072560,-500.0,0.00019863,3]
[351041390,1738305072571,-500.0,0.00019863,3]
[351041391,1738305072581,-8728.29,0.00019863,3]
[351041392,1738305072591,-151.0,0.00019863,2]
[351041393,1738305072603,-916.1,0.00019863,3]
[351041394,1738305072613,-151.0,0.00019863,2]
[351041395,1738305072629,-2460.64,0.00019863,3]
[351041396,1738305072639,-1056.49,0.00019863,3]
[351041397,1738305072649,-1532.03,0.00019863,3]
[351041398,1738305072661,-9116.32,0.00019863,3]
[351041399,1738305072672,-4841.93,0.00019863,3]
[351041400,1738305072683,-2051.41,0.00019863,3]
[351041401,1738305072694,-3924.2,0.00019863,3]
[351041402,1738305072706,-5218.86,0.00019863,3]
[351041403,1738305072716,-1447.74,0.00019863,3]
[351041404,1738305072726,-1383.2,0.00019863,3]
[351041405,1738305072736,-591.16,0.00019863,3]
[351041406,1738305072746,-625.0,0.00019863,3]
[351041407,1738305072756,-3735.73,0.00019863,3]
[351041408,1738305072768,-3624.11,0.00019863,3]
[351041409,1738305072790,-2417.21,0.00019863,3]
[351041410,1738305072800,-2287.83,0.00019863,3]
[351041411,1738305072811,-537.58174462,0.00019863,3]
[351041412,1738305072821,-1686.1,0.00019863,3]
[351041413,1738305072831,-762.72,0.00019863,3]
[351041414,1738305072841,-5194.55,0.00019863,3]
[351041415,1738305072851,-502.65,0.00019863,3]
[351041416,1738305072862,-500.0,0.00019863,3]
[351041417,1738305072872,-1053.48,0.00019863,3]
[351041418,1738305072882,-1780.0,0.00019863,3]
[351041419,1738305072893,-1463.48,0.00019863,3]
[351041420,1738305072904,-4635.87,0.00019863,3]
[351041421,1738305072915,-9953.84,0.00019863,3]
[351041422,1738305072926,-509.26,0.00019863,3]
[351041423,1738305072937,-5346.59,0.00019863,3]
[351041424,1738305072947,-2428.73,0.00019863,3]
[351041425,1738305072957,-2702.64,0.00019863,3]
[351041426,1738305072968,-2686.86,0.00019863,3]
[351041427,1738305072978,-1018.98,0.00019863,3]
[351041428,1738305072999,-911.08,0.00019863,3]
[351041429,1738305073012,-841.09,0.00019863,3]
[351041430,1738305073023,-1934.18,0.00019863,3]
[351041431,1738305073033,-3270.62,0.00019863,3]
[351041432,1738305073043,-9393.9,0.00019863,3]
[351041433,1738305073053,-3812.71,0.00019863,3]
[351041434,1738305073064,-1562.13,0.00019863,3]
[351041435,1738305073075,-898.06,0.00019863,3]
[351041436,1738305073086,-3520.86,0.00019863,3]
[351041437,1738305073096,-685.72,0.00019863,3]
[351041438,1738305073107,-3882.4,0.00019863,3]
[351041439,1738305073118,-8126.78,0.00019863,3]
[351041440,1738305073128,-500.0,0.00019863,3]
[351041441,1738305073138,-1656.89,0.00019863,3]
[351041442,1738305073148,-2893.08,0.00019863,3]
[351041443,1738305073159,-1770.12,0.00019863,3]
[351041444,1738305073169,-6696.12,0.00019863,3]
[351041445,1738305073181,-500.0,0.00019863,3]
[351041446,1738305073193,-8324.65,0.00019863,3]
[351041447,1738305073205,-2584.33,0.00019863,3]
[351041448,1738305073218,-500.0,0.00019863,3]
[351041449,1738305073230,-6857.56,0.00019863,3]
[351041450,1738305073240,-4353.28,0.00019863,3]
[351041451,1738305073251,-748.5,0.00019863,3]
[351041452,1738305073263,-500.0,0.00019863,3]
[351041453,1738305073274,-500.0,0.00019863,3]
[351041454,1738305073286,-8823.7,0.00019863,3]
[351041455,1738305073297,-554.54,0.00019863,3]
[351041456,1738305073309,-892.21,0.00019863,3]
[351041457,1738305073320,-1643.4,0.00019863,3]
[351041458,1738305073330,-2547.58,0.00019863,3]
[351041459,1738305073341,-500.0,0.00019863,3]
[351041460,1738305073351,-3407.2,0.00019863,3]
[351041461,1738305073362,-2444.23,0.00019863,3]
[351041462,1738305073373,-500.0,0.00019863,3]
[351041463,1738305073383,-2068.07,0.00019863,3]
[351041464,1738305073393,-500.0,0.00019863,3]
[351041465,1738305073404,-870.32,0.00019863,3]
[351041466,1738305073414,-1787.06,0.00019863,3]
[351041467,1738305073425,-538.79,0.00019863,3]
[351041468,1738305073435,-646.98,0.00019863,3]
[351041469,1738305073446,-904.46,0.00019863,2]
[351041470,1738305073456,-4275.8,0.00019863,3]
[351041471,1738305073468,-1152.43,0.00019863,3]
[351041472,1738305073479,-683.31,0.00019863,3]
[351041473,1738305073489,-4182.25,0.00019863,3]
[351041474,1738305073499,-2459.19,0.00019863,3]
[351041475,1738305073510,-10947.16,0.00019863,3]
[351041476,1738305073521,-935.69,0.00019863,3]
[351041477,1738305073531,-1432.03,0.00019863,3]
[351041478,1738305073542,-2829.34,0.00019863,3]
[351041479,1738305073552,-1345.96,0.00019863,3]
[351041480,1738305073563,-3565.35,0.00019863,3]
[351041481,1738305073574,-3543.44,0.00019863,3]
[351041482,1738305073586,-2298.22,0.00019863,3]
[351041483,1738305073791,-500.0,0.00019863,3]
[351041484,1738305073800,-500.0,0.00019863,3]
[351041485,1738305073811,-500.0,0.00019863,3]
[351041486,1738305073821,-500.0,0.00019863,3]
[351041487,1738305073831,-1291.99,0.00019863,3]
[351041488,1738305073841,-1278.48,0.00019863,3]
[351041489,1738305073851,-950.79,0.00019863,3]
[351041490,1738305073861,-1386.34,0.00019863,3]
[351041491,1738305073872,-3756.07,0.00019863,3]
[351041492,1738305073882,-1884.67,0.00019863,3]
[351041493,1738305073892,-500.0,0.00019863,3]
[351041494,1738305073901,-1555.45,0.00019863,3]
[351041495,1738305073910,-4405.08,0.00019863,3]
[351041496,1738305073920,-500.0,0.00019863,3]
[351041497,1738305073930,-1197.53,0.00019863,3]
[351041498,1738305073939,-1376.94,0.00019863,3]
[351041499,1738305073949,-1263.64,0.00019863,3]
[351041500,1738305073958,-500.0,0.00019863,3]
[351041501,1738305073967,-2409.26,0.00019863,3]
[351041502,1738305073977,-1099.02,0.00019863,3]
[351041503,1738305073988,-150.0,0.00019869,4]
[351041504,1738305073998,-1059.0,0.00019869,2]
[351041505,1738305074008,-208.3632214,0.00019886,2]
[351041506,1738305074020,-1196.6544912,0.00019886,2]
[351041507,1738305074029,-269.6821527,0.00019886,2]
[351041508,1738305074040,-514.279294,0.00019886,2]
[351041509,1738305074049,-4031.9781752,0.00019886,2]
[351041510,1738305074060,-500.0,0.0001989,3]
[351041511,1738305074071,-77157.9387594,0.000199,2]
[351041512,1738305074080,-2230.29923672,0.000199,15]
[351041513,1738305074091,-500.0,0.000199,7]
[351041514,1738305074103,-500.0,0.00019918,3]
[351041515,1738305074115,-1000.0,0.00019921,2]
[351041516,1738305074125,-1000.0,0.00019921,2]
[351041517,1738305074135,-449.686419,0.00019922,2]
[351041518,1738305074144,-150.0,0.00019939,4]
[351041519,1738305074155,-150.0,0.00019939,4]
[351041520,1738305074165,-150.0,0.00019939,4]
[351041521,1738305074176,-500.0,0.00019945,3]
[351041522,1738305074186,-500.0,0.00019959,2]
[351041523,1738305074197,-293.07,0.00019971,2]
[351041524,1738305074207,-150.0,0.00019972,4]
[351041525,1738305074218,-500.0,0.00019973,3]
[351041526,1738305074228,-3114.11,0.00019979,3]
[351041527,1738305074237,-3114.11,0.00019979,3]
[351041528,1738305074249,-3114.11,0.00019979,3]
[351041529,1738305074259,-3114.11,0.00019979,3]
[351041530,1738305074270,-3114.13977237,0.00019979,3]
[351041531,1738305074280,-53642.83565534,0.0001998,2]
[351041532,1738305074290,-1740.59524993,0.0001998,2]
[351041533,1738305074301,-208.3632214,0.00019986,2]
[351041534,1738305074311,-977.5658552,0.00019986,2]
[351041535,1738305074321,-269.6821527,0.00019986,2]
[351041536,1738305074330,-518.2749894,0.00019986,2]